[Event "World Junior Chess Championship U20 2022"]
[White "Carroll, Peter"]
[Black "Petriashvili, Nikoloz"]
[WhiteFideId "2510243"]
[BlackFideId "13611216"]
[WhiteElo "2115"]
[BlackElo "2428"]
[Result "0-1"]
[Round "01"]
[TimeControl "5400+30"]
[Date "2022.10.12"]
[WhiteClock "0:24:07"]
[BlackClock "1:25:40"]

1. d4 {[%clk 1:30:57]}  d5 {[%clk 1:30:48]} 2. Nc3 {[%clk 1:31:14]}  Nf6 {[%clk 1:30:10]} 3. Bf4 {[%clk 1:31:37]}  c5 {[%clk 1:30:39]} 4. e3 {[%clk 1:32:00]}  cxd4 {[%clk 1:31:06]} 5. exd4 {[%clk 1:32:26]}  a6 {[%clk 1:31:34]} 6. Nf3 {[%clk 1:32:48]}  Nc6 {[%clk 1:32:00]} 7. Ne5 {[%clk 1:33:13]}  e6 {[%clk 1:31:31]} 8. Nxc6 {[%clk 1:29:55]}  bxc6 {[%clk 1:31:02]} 9. Na4 {[%clk 1:30:21]}  Bd6 {[%clk 1:30:42]} 10. Bxd6 {[%clk 1:28:00]}  Qxd6 {[%clk 1:31:09]} 11. c3 {[%clk 1:27:35]}  O-O {[%clk 1:30:22]} 12. Be2 {[%clk 1:26:49]}  a5 {[%clk 1:28:23]} 13. O-O {[%clk 1:24:59]}  Ba6 {[%clk 1:27:42]} 14. Nc5 {[%clk 1:21:35]}  Bxe2 {[%clk 1:28:07]} 15. Qxe2 {[%clk 1:22:01]}  Rfb8 {[%clk 1:26:03]} 16. Rfb1 {[%clk 1:01:23]}  Nd7 {[%clk 1:25:44]} 17. b4 {[%clk 0:44:00]}  axb4 {[%clk 1:26:00]} 18. cxb4 {[%clk 0:44:23]}  Nxc5 {[%clk 1:25:42]} 19. bxc5 {[%clk 0:25:46]}  Qf4 {[%clk 1:20:03]} 20. Qe3 {[%clk 0:14:06]}  Rxb1+ {[%clk 1:19:16]} 21. Rxb1 {[%clk 0:14:32]}  g5 {[%clk 1:18:57]} 22. Rb2 {[%clk 0:10:41]}  Ra4 {[%clk 1:12:09]} 23. g3 {[%clk 0:09:06]}  Qxe3 {[%clk 1:12:08]} 24. fxe3 {[%clk 0:09:34]}  g4 {[%clk 1:12:03]} 25. h3 {[%clk 0:10:03]}  h5 {[%clk 1:10:24]} 26. hxg4 {[%clk 0:09:37]}  hxg4 {[%clk 1:10:52]} 27. Kf1 {[%clk 0:06:14]}  Kg7 {[%clk 1:09:01]} 28. Rb6 {[%clk 0:06:07]}  Rxa2 {[%clk 1:08:27]} 29. Rxc6 {[%clk 0:06:35]}  Rc2 {[%clk 1:05:49]} 30. Rc8 {[%clk 0:06:04]}  Kf6 {[%clk 1:05:57]} 31. Rg8 {[%clk 0:05:28]}  Kf5 {[%clk 1:06:17]} 32. Rg7 {[%clk 0:05:56]}  f6 {[%clk 1:05:53]} 33. Rf7 {[%clk 0:06:25]}  e5 {[%clk 1:04:57]} 34. Rd7 {[%clk 0:04:54]}  Ke4 {[%clk 1:04:51]} 35. Rd6 {[%clk 0:05:21]}  exd4 {[%clk 1:04:19]} 36. exd4 {[%clk 0:05:38]}  Kxd4 {[%clk 0:56:49]} 37. Rxf6 {[%clk 0:06:00]}  Ke3 {[%clk 0:57:12]} 38. c6 {[%clk 0:02:11]}  d4 {[%clk 0:57:00]} 39. Re6+ {[%clk 0:00:31]}  Kf3 {[%clk 0:57:24]} 40. Rf6+ {[%clk 0:00:31]}  Kxg3 {[%clk 0:57:31]} 41. Rd6 {[%clk 0:27:00]}  Kf3 {[%clk 1:25:19]} 42. Ke1 {[%clk 0:25:22]}  g3 {[%clk 1:23:42]} 43. Rxd4 {[%clk 0:23:56]}  Rxc6 {[%clk 1:24:01]} 44. Rd3+ {[%clk 0:22:42]}  Kg2 {[%clk 1:23:51]} 45. Rd8 {[%clk 0:23:03]}  Re6+ {[%clk 1:24:19]} 46. Kd2 {[%clk 0:23:23]}  Kg1 {[%clk 1:24:47]} 47. Rd7 {[%clk 0:23:43]}  g2 {[%clk 1:25:13]} 48. Rd8 {[%clk 0:24:07]}  Rh6 {[%clk 1:25:40]} 0-1


[Site "http://www.chessbomb.com"]

[Event "World Junior Chess Championship U20 2022"]
[White "Droin, Augustin"]
[Black "Tripodi, Enzo"]
[WhiteFideId "45105987"]
[BlackFideId "2822674"]
[WhiteElo "2416"]
[BlackElo "2113"]
[Result "1-0"]
[Round "01"]
[TimeControl "5400+30"]
[Date "2022.10.12"]
[WhiteClock "0:23:55"]
[BlackClock "0:01:23"]

1. e4 {[%clk 1:30:56]}  c5 {[%clk 1:30:55]} 2. Nf3 {[%clk 1:31:23]}  d6 {[%clk 1:31:21]} 3. d4 {[%clk 1:31:46]}  cxd4 {[%clk 1:31:47]} 4. Nxd4 {[%clk 1:32:15]}  Nf6 {[%clk 1:32:10]} 5. Nc3 {[%clk 1:32:41]}  a6 {[%clk 1:32:36]} 6. Bd3 {[%clk 1:33:04]}  e5 {[%clk 1:29:38]} 7. Nde2 {[%clk 1:33:29]}  b5 {[%clk 1:27:19]} 8. Ng3 {[%clk 1:28:50]}  Be6 {[%clk 1:25:56]} 9. O-O {[%clk 1:28:22]}  Be7 {[%clk 1:25:32]} 10. a4 {[%clk 1:23:57]}  b4 {[%clk 1:12:07]} 11. Nd5 {[%clk 1:24:23]}  Nc6 {[%clk 1:10:23]} 12. Bc4 {[%clk 1:17:20]}  Na5 {[%clk 1:01:47]} 13. Nxf6+ {[%clk 1:13:32]}  Bxf6 {[%clk 1:01:31]} 14. Bd5 {[%clk 1:12:06]}  Rc8 {[%clk 0:58:49]} 15. Bxe6 {[%clk 1:03:36]}  fxe6 {[%clk 0:59:15]} 16. Qd3 {[%clk 1:02:55]}  O-O {[%clk 0:57:45]} 17. Bd2 {[%clk 0:59:17]}  Qb6 {[%clk 0:54:13]} 18. b3 {[%clk 0:59:01]}  Rf7 {[%clk 0:41:19]} 19. Rac1 {[%clk 0:53:55]}  g6 {[%clk 0:37:07]} 20. c4 {[%clk 0:42:15]}  bxc3 {[%clk 0:32:56]} 21. Rxc3 {[%clk 0:42:41]}  Rxc3 {[%clk 0:21:55]} 22. Qxc3 {[%clk 0:43:03]}  Nxb3 {[%clk 0:21:40]} 23. Rb1 {[%clk 0:42:52]}  Rb7 {[%clk 0:21:24]} 24. Nf1 {[%clk 0:37:12]}  d5 {[%clk 0:16:38]} 25. Bh6 {[%clk 0:34:36]}  g5 {[%clk 0:12:16]} 26. Qc8+ {[%clk 0:30:43]}  Kf7 {[%clk 0:12:25]} 27. h4 {[%clk 0:27:24]}  gxh4 {[%clk 0:06:40]} 28. exd5 {[%clk 0:26:23]}  exd5 {[%clk 0:05:49]} 29. Ne3 {[%clk 0:25:03]}  Qc7 {[%clk 0:03:54]} 30. Qf8+ {[%clk 0:23:37]}  Ke6 {[%clk 0:03:16]} 31. Qe8+ {[%clk 0:23:25]}  Kd6 {[%clk 0:01:12]} 32. Bf8+ {[%clk 0:23:43]}  Be7 {[%clk 0:01:30]} 33. Bxe7+ {[%clk 0:23:55]}  Ke6 {[%clk 0:01:23]} 34. Bd8+ {[%clk 0:23:55]} 1-0


[Site "http://www.chessbomb.com"]

[Event "World Junior Chess Championship U20 2022"]
[White "Djurovic, Peko"]
[Black "Sokolovsky, Yahli"]
[WhiteFideId "16503902"]
[BlackFideId "2820242"]
[WhiteElo "2084"]
[BlackElo "2416"]
[Result "0-1"]
[Round "01"]
[TimeControl "5400+30"]
[Date "2022.10.12"]
[WhiteClock "0:13:31"]
[BlackClock "0:08:16"]

1. e4 {[%clk 1:30:55]}  e5 {[%clk 1:30:55]} 2. Nf3 {[%clk 1:31:14]}  Nc6 {[%clk 1:31:22]} 3. d4 {[%clk 1:31:15]}  exd4 {[%clk 1:31:45]} 4. Bc4 {[%clk 1:31:28]}  Bc5 {[%clk 1:31:11]} 5. Ng5 {[%clk 1:28:55]}  Nh6 {[%clk 1:29:19]} 6. Nxf7 {[%clk 1:28:43]}  Nxf7 {[%clk 1:29:45]} 7. Bxf7+ {[%clk 1:29:05]}  Kxf7 {[%clk 1:30:12]} 8. Qh5+ {[%clk 1:29:28]}  g6 {[%clk 1:30:37]} 9. Qxc5 {[%clk 1:29:53]}  d6 {[%clk 1:26:28]} 10. Qb5 {[%clk 1:28:49]}  a6 {[%clk 1:20:10]} 11. Qd3 {[%clk 1:26:52]}  Be6 {[%clk 1:13:10]} 12. O-O {[%clk 1:25:27]}  Qh4 {[%clk 1:05:03]} 13. f4 {[%clk 1:19:06]}  Rhe8 {[%clk 0:59:06]} 14. Nd2 {[%clk 1:01:11]}  Nb4 {[%clk 0:57:09]} 15. Qe2 {[%clk 1:00:38]}  Qh5 {[%clk 0:55:07]} 16. Nf3 {[%clk 0:47:46]}  Kg8 {[%clk 0:54:44]} 17. a3 {[%clk 0:34:17]}  Nc6 {[%clk 0:55:02]} 18. Qd3 {[%clk 0:31:31]}  Qb5 {[%clk 0:48:23]} 19. Re1 {[%clk 0:25:22]}  Re7 {[%clk 0:38:07]} 20. Qd2 {[%clk 0:13:33]}  Rae8 {[%clk 0:27:13]} 21. Qf2 {[%clk 0:10:05]}  d3 {[%clk 0:18:55]} 22. c3 {[%clk 0:09:26]}  Bg4 {[%clk 0:17:22]} 23. Nd2 {[%clk 0:09:53]}  Be2 {[%clk 0:13:09]} 24. b4 {[%clk 0:09:47]}  Qa4 {[%clk 0:12:07]} 25. h3 {[%clk 0:07:39]}  Rf7 {[%clk 0:10:21]} 26. Qe3 {[%clk 0:05:10]}  Ref8 {[%clk 0:08:01]} 27. g3 {[%clk 0:05:29]}  Qb5 {[%clk 0:07:57]} 28. c4 {[%clk 0:04:55]}  Qh5 {[%clk 0:08:23]} 29. Kg2 {[%clk 0:05:21]}  Re8 {[%clk 0:04:30]} 30. Bb2 {[%clk 0:05:37]}  g5 {[%clk 0:04:50]} 31. f5 {[%clk 0:00:34]}  g4 {[%clk 0:04:53]} 32. hxg4 {[%clk 0:00:57]}  Qxg4 {[%clk 0:05:08]} 33. Qf4 {[%clk 0:01:17]}  Ne5 {[%clk 0:04:18]} 34. Bxe5 {[%clk 0:00:53]}  Rxe5 {[%clk 0:04:34]} 35. Qxg4+ {[%clk 0:00:38]}  Bxg4 {[%clk 0:05:02]} 36. Kf2 {[%clk 0:00:31]}  Be2 {[%clk 0:04:45]} 37. Rh1 {[%clk 0:00:33]}  c6 {[%clk 0:03:48]} 38. g4 {[%clk 0:00:34]}  Rg7 {[%clk 0:02:56]} 39. Rag1 {[%clk 0:00:33]}  d5 {[%clk 0:03:25]} 40. cxd5 {[%clk 0:00:47]}  cxd5 {[%clk 0:03:54]} 41. Ke3 {[%clk 0:21:00]}  dxe4 {[%clk 0:27:00]} 42. f6 {[%clk 0:17:22]}  Rxg4 {[%clk 0:16:48]} 43. Rxg4+ {[%clk 0:14:36]}  Bxg4 {[%clk 0:17:12]} 44. Kf4 {[%clk 0:15:02]}  e3 {[%clk 0:12:50]} 45. Nc4 {[%clk 0:15:19]}  Re6 {[%clk 0:10:36]} 46. Nxe3 {[%clk 0:13:31]}  d2 {[%clk 0:08:16]} 0-1


[Site "http://www.chessbomb.com"]

[Event "World Junior Chess Championship U20 2022"]
[White "Siddharth, Jagadeesh"]
[Black "Javornik, Nik"]
[WhiteFideId "5818320"]
[BlackFideId "14636549"]
[WhiteElo "2415"]
[BlackElo "2064"]
[Result "1-0"]
[Round "01"]
[TimeControl "5400+30"]
[Date "2022.10.12"]
[WhiteClock "0:25:23"]
[BlackClock "0:33:48"]

1. d4 {[%clk 1:30:56]}  Nf6 {[%clk 1:30:51]} 2. c4 {[%clk 1:31:18]}  g6 {[%clk 1:31:17]} 3. Nc3 {[%clk 1:31:42]}  Bg7 {[%clk 1:31:40]} 4. e4 {[%clk 1:32:05]}  d6 {[%clk 1:32:06]} 5. Be2 {[%clk 1:32:27]}  O-O {[%clk 1:32:31]} 6. Be3 {[%clk 1:32:50]}  a5 {[%clk 1:32:33]} 7. h4 {[%clk 1:31:49]}  a4 {[%clk 1:33:00]} 8. h5 {[%clk 1:28:34]}  c5 {[%clk 1:33:21]} 9. h6 {[%clk 1:24:11]}  Bh8 {[%clk 1:33:39]} 10. dxc5 {[%clk 1:23:27]}  Qa5 {[%clk 1:33:32]} 11. cxd6 {[%clk 1:12:33]}  Nxe4 {[%clk 1:32:49]} 12. dxe7 {[%clk 1:12:18]}  Re8 {[%clk 1:33:17]} 13. Bd4 {[%clk 1:11:06]}  Nc6 {[%clk 1:28:41]} 14. Bxh8 {[%clk 1:10:11]}  Kxh8 {[%clk 1:28:20]} 15. Qd5 {[%clk 1:07:32]}  Nxc3 {[%clk 1:25:41]} 16. Qxa5 {[%clk 1:07:48]}  Rxa5 {[%clk 1:22:33]} 17. bxc3 {[%clk 1:08:10]}  Re5 {[%clk 1:22:11]} 18. O-O-O {[%clk 1:07:52]}  R5xe7 {[%clk 1:19:39]} 19. Rd2 {[%clk 1:07:40]}  Kg8 {[%clk 1:11:37]} 20. Kd1 {[%clk 1:03:09]}  Ne5 {[%clk 1:05:19]} 21. Rh4 {[%clk 1:01:38]}  g5 {[%clk 1:03:00]} 22. Rhd4 {[%clk 0:59:10]}  Re6 {[%clk 1:01:05]} 23. Rd8 {[%clk 0:54:33]}  Kf8 {[%clk 0:59:33]} 24. Rxe8+ {[%clk 0:54:37]}  Kxe8 {[%clk 0:58:58]} 25. Rd5 {[%clk 0:53:31]}  f5 {[%clk 0:54:59]} 26. Nh3 {[%clk 0:47:23]}  Nf7 {[%clk 0:45:51]} 27. Bh5 {[%clk 0:46:27]}  Rxh6 {[%clk 0:46:12]} 28. Bxf7+ {[%clk 0:46:41]}  Kxf7 {[%clk 0:46:41]} 29. Nxg5+ {[%clk 0:46:59]}  Kf6 {[%clk 0:46:34]} 30. f4 {[%clk 0:46:47]}  Rh1+ {[%clk 0:46:15]} 31. Kc2 {[%clk 0:45:03]}  h6 {[%clk 0:43:56]} 32. Nf3 {[%clk 0:45:11]}  Be6 {[%clk 0:39:20]} 33. Rd6 {[%clk 0:38:42]}  Ke7 {[%clk 0:39:02]} 34. Rd4 {[%clk 0:36:13]}  Rf1 {[%clk 0:37:10]} 35. Kb2 {[%clk 0:36:20]}  Rf2+ {[%clk 0:36:47]} 36. Rd2 {[%clk 0:36:42]}  Rf1 {[%clk 0:36:49]} 37. Ne5 {[%clk 0:35:37]}  h5 {[%clk 0:34:47]} 38. g3 {[%clk 0:33:06]}  Kf6 {[%clk 0:33:13]} 39. Rh2 {[%clk 0:31:41]}  Rg1 {[%clk 0:31:27]} 40. Rxh5 {[%clk 0:31:02]}  Rg2+ {[%clk 0:31:50]} 41. Ka3 {[%clk 0:30:57]}  Rxg3 {[%clk 0:32:15]} 42. Rh6+ {[%clk 0:29:13]}  Ke7 {[%clk 0:32:31]} 43. Rh7+ {[%clk 0:28:20]}  Kd6 {[%clk 0:32:59]} 44. Rxb7 {[%clk 0:28:21]}  Rxc3+ {[%clk 0:33:24]} 45. Kxa4 {[%clk 0:28:09]}  Kc5 {[%clk 0:33:41]} 46. Re7 {[%clk 0:25:37]}  Kd6 {[%clk 0:33:38]} 47. Ra7 {[%clk 0:25:24]}  Kc5 {[%clk 0:33:33]} 48. Ra6 {[%clk 0:25:01]}  Bxc4 {[%clk 0:33:21]} 49. Rc6+ {[%clk 0:25:24]}  Kd4 {[%clk 0:33:48]} 50. Kb4 {[%clk 0:25:23]}  Kd5 {[%clk 0:33:48]} 1-0


[Site "http://www.chessbomb.com"]

[Event "World Junior Chess Championship U20 2022"]
[White "Pennica, Andrea"]
[Black "Milikow, Yoav"]
[WhiteFideId "2816828"]
[BlackFideId "2822237"]
[WhiteElo "2037"]
[BlackElo "2412"]
[Result "0-1"]
[Round "01"]
[TimeControl "5400+30"]
[Date "2022.10.12"]
[WhiteClock "0:41:02"]
[BlackClock "1:21:26"]

1. e4 {[%clk 1:30:56]}  e5 {[%clk 1:30:54]} 2. Nf3 {[%clk 1:30:51]}  Nc6 {[%clk 1:31:14]} 3. Nc3 {[%clk 1:31:03]}  Nf6 {[%clk 1:31:30]} 4. d4 {[%clk 1:31:00]}  exd4 {[%clk 1:31:47]} 5. Nxd4 {[%clk 1:31:23]}  Bb4 {[%clk 1:32:09]} 6. Nxc6 {[%clk 1:31:19]}  bxc6 {[%clk 1:32:33]} 7. Bd3 {[%clk 1:31:42]}  d5 {[%clk 1:32:41]} 8. exd5 {[%clk 1:30:57]}  O-O {[%clk 1:32:53]} 9. O-O {[%clk 1:31:07]}  Bg4 {[%clk 1:32:53]} 10. f3 {[%clk 1:31:18]}  Bh5 {[%clk 1:33:15]} 11. Bg5 {[%clk 1:25:19]}  Qd6 {[%clk 1:33:30]} 12. Qe1 {[%clk 1:24:54]}  Nxd5 {[%clk 1:29:21]} 13. Ne4 {[%clk 1:25:21]}  Bxe1 {[%clk 1:28:22]} 14. Nxd6 {[%clk 1:25:35]}  Bb4 {[%clk 1:27:23]} 15. Nc4 {[%clk 1:26:03]}  Rfe8 {[%clk 1:25:46]} 16. c3 {[%clk 1:17:53]}  Bc5+ {[%clk 1:25:42]} 17. Kh1 {[%clk 1:18:21]}  f6 {[%clk 1:25:24]} 18. Bd2 {[%clk 1:16:11]}  Rad8 {[%clk 1:22:43]} 19. Rad1 {[%clk 1:13:37]}  Nb6 {[%clk 1:22:43]} 20. Nxb6 {[%clk 0:58:14]}  Rxd3 {[%clk 1:23:04]} 21. Na4 {[%clk 0:58:34]}  Bd6 {[%clk 1:22:31]} 22. Bc1 {[%clk 0:55:10]}  Rxd1 {[%clk 1:21:48]} 23. Rxd1 {[%clk 0:55:38]}  Bg6 {[%clk 1:21:50]} 24. b3 {[%clk 0:53:56]}  Bb1 {[%clk 1:21:34]} 25. c4 {[%clk 0:49:36]}  Bxa2 {[%clk 1:21:44]} 26. c5 {[%clk 0:49:14]}  Bxb3 {[%clk 1:21:48]} 27. Rf1 {[%clk 0:46:47]}  Bf8 {[%clk 1:21:12]} 28. Nc3 {[%clk 0:46:42]}  Bxc5 {[%clk 1:21:26]} 29. Ne4 {[%clk 0:46:49]}  Bb6 {[%clk 1:20:58]} 30. Ba3 {[%clk 0:45:53]}  f5 {[%clk 1:21:11]} 31. Nc5 {[%clk 0:45:48]}  Bc4 {[%clk 1:21:11]} 32. Rd1 {[%clk 0:45:09]}  Re3 {[%clk 1:21:10]} 33. Bb4 {[%clk 0:41:02]}  a5 {[%clk 1:21:26]} 0-1


[Site "http://www.chessbomb.com"]

[Event "World Junior Chess Championship U20 2022"]
[White "Veiga, Jose Francisco R P Neves"]
[Black "Candian, Lorenzo"]
[WhiteFideId "1930087"]
[BlackFideId "2863664"]
[WhiteElo "2409"]
[BlackElo "2022"]
[Result "1-0"]
[Round "01"]
[TimeControl "5400+30"]
[Date "2022.10.12"]
[WhiteClock "0:22:21"]
[BlackClock "0:22:36"]

1. Nf3 {[%clk 1:30:50]}  Nf6 {[%clk 1:30:12]} 2. g3 {[%clk 1:31:11]}  g6 {[%clk 1:28:24]} 3. Bg2 {[%clk 1:31:30]}  c5 {[%clk 1:28:24]} 4. O-O {[%clk 1:31:24]}  Bg7 {[%clk 1:27:55]} 5. c4 {[%clk 1:30:45]}  Nc6 {[%clk 1:26:05]} 6. Nc3 {[%clk 1:30:21]}  d5 {[%clk 1:23:24]} 7. cxd5 {[%clk 1:26:42]}  Nxd5 {[%clk 1:23:36]} 8. Nxd5 {[%clk 1:26:08]}  Qxd5 {[%clk 1:23:55]} 9. d3 {[%clk 1:22:52]}  O-O {[%clk 1:21:34]} 10. a3 {[%clk 1:09:08]}  Rd8 {[%clk 1:13:59]} 11. Be3 {[%clk 0:52:28]}  Bxb2 {[%clk 0:57:29]} 12. Rb1 {[%clk 0:51:35]}  Bxa3 {[%clk 0:45:49]} 13. Nd4 {[%clk 0:43:57]}  Qh5 {[%clk 0:43:53]} 14. Nxc6 {[%clk 0:38:40]}  bxc6 {[%clk 0:40:55]} 15. Qa4 {[%clk 0:29:14]}  Bb4 {[%clk 0:40:08]} 16. Bxc6 {[%clk 0:28:59]}  Rb8 {[%clk 0:38:30]} 17. Bf3 {[%clk 0:27:16]}  Bg4 {[%clk 0:32:19]} 18. Bxg4 {[%clk 0:26:20]}  Qxg4 {[%clk 0:32:49]} 19. Bxc5 {[%clk 0:26:05]}  a5 {[%clk 0:32:29]} 20. Bxe7 {[%clk 0:25:19]}  Re8 {[%clk 0:28:11]} 21. Bd6 {[%clk 0:25:15]}  Rbc8 {[%clk 0:26:20]} 22. e3 {[%clk 0:22:55]}  Qe2 {[%clk 0:23:04]} 23. Bxb4 {[%clk 0:23:09]}  axb4 {[%clk 0:23:32]} 24. d4 {[%clk 0:21:13]}  Rxe3 {[%clk 0:23:00]} 25. fxe3 {[%clk 0:21:08]}  Rc2 {[%clk 0:21:29]} 26. Qe8+ {[%clk 0:21:22]}  Kg7 {[%clk 0:21:39]} 27. Qxf7+ {[%clk 0:21:29]}  Kh6 {[%clk 0:22:01]} 28. Qf8+ {[%clk 0:21:32]}  Kg5 {[%clk 0:22:10]} 29. Qf4+ {[%clk 0:21:55]}  Kh5 {[%clk 0:22:36]} 30. Qh4# {[%clk 0:22:21]} 1-0


[Site "http://www.chessbomb.com"]

[Event "World Junior Chess Championship U20 2022"]
[White "Persico, Lorenzo"]
[Black "Kanyamarala, Tarun"]
[WhiteFideId "899240"]
[BlackFideId "45004714"]
[WhiteElo "2007"]
[BlackElo "2407"]
[Result "0-1"]
[Round "01"]
[TimeControl "5400+30"]
[Date "2022.10.12"]
[WhiteClock "0:00:39"]
[BlackClock "0:05:07"]

1. e4 {[%clk 1:30:44]}  c5 {[%clk 1:30:53]} 2. Nf3 {[%clk 1:30:49]}  e6 {[%clk 1:31:15]} 3. g3 {[%clk 1:26:28]}  d5 {[%clk 1:31:23]} 4. exd5 {[%clk 1:26:05]}  exd5 {[%clk 1:31:46]} 5. Bg2 {[%clk 1:24:46]}  Qe7+ {[%clk 1:31:36]} 6. Qe2 {[%clk 1:25:01]}  Qxe2+ {[%clk 1:31:52]} 7. Kxe2 {[%clk 1:25:20]}  Nc6 {[%clk 1:32:17]} 8. Re1 {[%clk 1:23:10]}  Nf6 {[%clk 1:27:51]} 9. Kf1+ {[%clk 1:16:11]}  Be7 {[%clk 1:25:31]} 10. d3 {[%clk 1:06:42]}  O-O {[%clk 1:24:42]} 11. Bf4 {[%clk 1:00:33]}  h6 {[%clk 1:15:13]} 12. Nc3 {[%clk 0:39:53]}  Be6 {[%clk 1:14:54]} 13. Nb5 {[%clk 0:34:58]}  Rad8 {[%clk 1:12:15]} 14. Re2 {[%clk 0:17:21]}  a6 {[%clk 1:09:16]} 15. Nc3 {[%clk 0:12:09]}  Rfe8 {[%clk 1:01:14]} 16. Rae1 {[%clk 0:12:25]}  g5 {[%clk 0:56:41]} 17. Bc7 {[%clk 0:12:16]}  Rc8 {[%clk 0:56:10]} 18. Bb6 {[%clk 0:12:17]}  Nd7 {[%clk 0:52:17]} 19. Na4 {[%clk 0:12:05]}  g4 {[%clk 0:51:08]} 20. Ng1 {[%clk 0:05:39]}  Nd4 {[%clk 0:49:04]} 21. Rd2 {[%clk 0:01:17]}  Bg5 {[%clk 0:41:16]} 22. Rdd1 {[%clk 0:01:26]}  Nxc2 {[%clk 0:41:22]} 23. Re2 {[%clk 0:01:46]}  Nd4 {[%clk 0:41:48]} 24. Ree1 {[%clk 0:02:05]}  h5 {[%clk 0:37:11]} 25. f4 {[%clk 0:01:53]}  Be7 {[%clk 0:20:20]} 26. Rc1 {[%clk 0:01:51]}  h4 {[%clk 0:19:01]} 27. b4 {[%clk 0:01:28]}  hxg3 {[%clk 0:18:25]} 28. hxg3 {[%clk 0:01:44]}  Nf5 {[%clk 0:18:19]} 29. Bxc5 {[%clk 0:00:32]}  Nxg3+ {[%clk 0:16:26]} 30. Kf2 {[%clk 0:00:57]}  Bh4 {[%clk 0:16:47]} 31. Red1 {[%clk 0:01:09]}  Nf5+ {[%clk 0:06:47]} 32. Ke2 {[%clk 0:01:07]}  Bg3 {[%clk 0:07:02]} 33. Rf1 {[%clk 0:00:34]}  b5 {[%clk 0:05:51]} 34. Nb6 {[%clk 0:00:33]}  Nxb6 {[%clk 0:05:24]} 35. Bxb6 {[%clk 0:00:57]}  Rxc1 {[%clk 0:05:41]} 36. Rxc1 {[%clk 0:01:22]}  Bxf4 {[%clk 0:05:48]} 37. Rc5 {[%clk 0:00:36]}  Be3 {[%clk 0:05:04]} 38. Rc6 {[%clk 0:00:39]}  Bxg1 {[%clk 0:05:07]} 0-1


[Site "http://www.chessbomb.com"]

[Event "World Junior Chess Championship U20 2022"]
[White "Barseghyan, Armen Ar."]
[Black "Stolyarsky, Yegor"]
[WhiteFideId "13306707"]
[BlackFideId "2814595"]
[WhiteElo "2402"]
[BlackElo "1987"]
[Result "1-0"]
[Round "01"]
[TimeControl "5400+30"]
[Date "2022.10.12"]
[WhiteClock "0:41:46"]
[BlackClock "0:15:46"]

1. d4 {[%clk 1:30:33]}  d5 {[%clk 1:30:19]} 2. Nf3 {[%clk 1:29:49]}  e6 {[%clk 1:29:59]} 3. Bf4 {[%clk 1:29:49]}  Nf6 {[%clk 1:27:47]} 4. e3 {[%clk 1:29:57]}  Bd6 {[%clk 1:25:38]} 5. Nbd2 {[%clk 1:30:01]}  b6 {[%clk 1:21:53]} 6. Ne5 {[%clk 1:24:13]}  Bb7 {[%clk 1:19:42]} 7. Bb5+ {[%clk 1:18:16]}  c6 {[%clk 1:16:50]} 8. Bd3 {[%clk 1:18:41]}  Qc7 {[%clk 1:10:40]} 9. Qf3 {[%clk 1:13:36]}  Nbd7 {[%clk 1:05:38]} 10. Nxd7 {[%clk 0:58:04]}  Nxd7 {[%clk 1:01:51]} 11. Qg3 {[%clk 0:57:41]}  Bxf4 {[%clk 1:01:12]} 12. exf4 {[%clk 0:58:06]}  O-O-O {[%clk 0:56:57]} 13. c3 {[%clk 0:57:43]}  c5 {[%clk 0:19:02]} 14. O-O {[%clk 0:55:02]}  h6 {[%clk 0:17:57]} 15. Rfe1 {[%clk 0:53:49]}  g5 {[%clk 0:16:35]} 16. f5 {[%clk 0:53:56]}  Qxg3 {[%clk 0:16:44]} 17. hxg3 {[%clk 0:54:18]}  Rde8 {[%clk 0:13:55]} 18. fxe6 {[%clk 0:52:58]}  Rxe6 {[%clk 0:14:05]} 19. Rxe6 {[%clk 0:48:00]}  fxe6 {[%clk 0:14:29]} 20. Re1 {[%clk 0:48:24]}  Re8 {[%clk 0:09:15]} 21. Bf5 {[%clk 0:45:41]}  Nf8 {[%clk 0:08:29]} 22. f4 {[%clk 0:40:40]}  Bc6 {[%clk 0:07:35]} 23. Bd3 {[%clk 0:35:31]}  Re7 {[%clk 0:06:37]} 24. Nf3 {[%clk 0:34:16]}  Rg7 {[%clk 0:06:42]} 25. Kf2 {[%clk 0:33:18]}  Be8 {[%clk 0:05:47]} 26. Rh1 {[%clk 0:29:08]}  g4 {[%clk 0:03:51]} 27. Ne5 {[%clk 0:26:33]}  h5 {[%clk 0:04:16]} 28. Ke3 {[%clk 0:25:32]}  c4 {[%clk 0:02:32]} 29. Bc2 {[%clk 0:25:50]}  b5 {[%clk 0:02:12]} 30. f5 {[%clk 0:25:51]}  exf5 {[%clk 0:01:50]} 31. Bxf5+ {[%clk 0:26:16]}  Kc7 {[%clk 0:02:16]} 32. Rf1 {[%clk 0:26:16]}  Kd6 {[%clk 0:00:51]} 33. Bxg4 {[%clk 0:20:29]}  Nh7 {[%clk 0:01:07]} 34. Bf5 {[%clk 0:19:56]}  Rxg3+ {[%clk 0:00:42]} 35. Rf3 {[%clk 0:19:37]}  Rxf3+ {[%clk 0:00:51]} 36. gxf3 {[%clk 0:19:40]}  Nf6 {[%clk 0:00:36]} 37. Kf4 {[%clk 0:19:43]}  Ng8 {[%clk 0:00:37]} 38. Kg5 {[%clk 0:19:09]}  Ne7 {[%clk 0:01:01]} 39. Bh3 {[%clk 0:16:29]}  a5 {[%clk 0:00:48]} 40. f4 {[%clk 0:15:30]}  b4 {[%clk 0:01:03]} 41. f5 {[%clk 0:15:19]}  Nc8 {[%clk 0:29:27]} 42. f6 {[%clk 0:44:57]}  Nb6 {[%clk 0:29:50]} 43. Bf5 {[%clk 0:45:18]}  b3 {[%clk 0:22:04]} 44. axb3 {[%clk 0:45:19]}  cxb3 {[%clk 0:22:24]} 45. Bg6 {[%clk 0:41:24]}  Bd7 {[%clk 0:16:44]} 46. Kh6 {[%clk 0:39:45]}  Be6 {[%clk 0:16:48]} 47. Bf5 {[%clk 0:40:09]}  h4 {[%clk 0:15:25]} 48. Bxe6 {[%clk 0:40:14]}  Kxe6 {[%clk 0:15:49]} 49. f7 {[%clk 0:40:31]}  Nd7 {[%clk 0:16:08]} 50. Kg7 {[%clk 0:40:57]}  h3 {[%clk 0:15:31]} 51. Nxd7 {[%clk 0:41:22]}  h2 {[%clk 0:15:46]} 52. Nc5+ {[%clk 0:41:46]} 1-0


[Site "http://www.chessbomb.com"]